{"text_format":"3","workbook":"xlsx","n_sheets":2,"sheets":["Análisis de cartera","Gráfico circular de cartera"],"not_rendered":{"charts":2,"images":1,"defined_names":3},"unopened":[{"sheet":"Gráfico circular de cartera","index":1,"reason":"not_a_worksheet"}],"read":"whole","date_system":"1900"}

{"sheet":"Análisis de cartera","index":0,"n_rows":9,"n_cols":11,"rows_kept":9,"merged":[[0,0,1,5],[0,6,0,8],[0,9,0,10],[1,6,1,8],[1,9,1,10],[2,0,3,5],[2,6,2,8],[2,9,2,10],[3,6,3,8],[3,9,3,10]]}
["Análisis de cartera",{"$nulls":5},"Costo total de cuentas",null,null,{"$f":"SUM(G6:G8)","v":{"v":18770,"d":"18,770.00 €"}}]
[{"$nulls":6},"Valor de cuentas",null,null,{"$f":"SUM(I6:I8)","v":{"v":19553.5,"d":"19,553.50 €"}}]
[{"$f":"TODAY()","v":{"v":41053,"d":"4105300.00%"}},{"$nulls":5},"Ganancias/pérdidas no realizadas €",null,null,{"$f":"J2-J1","v":{"v":783.5,"d":"783.50 €"}}]
[{"$nulls":6},"Ganancias/pérdidas no realizadas %",null,null,{"$f":"(J2/J1)-100%","v":{"v":0.0417421417155035,"d":"4.17%"}}]
["Nombre de inversión","Nombre o número de cuenta","Símbolo","Cantidad","Precio de compra por acción","Comisiones","Costo total (Precio de compra + Comisiones)","Actual cotización","Valor de mercado","Ganancias/Pérdidas (€)","Ganancias/Pérdidas (%)"]
["A Datum Corporation","Woodgrove Bank","AAAA",100,{"v":49,"d":"49.00 €"},{"v":29,"d":"29.00 €"},{"$f":"(Tabla1[Cantidad]*Tabla1[Precio de compra por acción])+Tabla1[Comisiones]","v":{"v":4929,"d":"4,929.00 €"}},{"v":56.99,"d":"56.99 €"},{"$f":"Tabla1[Cantidad]*Tabla1[Actual cotización]","v":{"v":5699,"d":"5,699.00 €"}},{"$f":"Tabla1[Valor de mercado]-Tabla1[Costo total (Precio de compra + Comisiones)]","v":{"v":770,"d":"770.00 €"}},{"$f":"IF(ISERR(Tabla1[Valor de mercado]/Tabla1[Costo total (Precio de compra + Comisiones)]),\"\",(Tabla1[Valor de mercado]/Tabla1[Costo total (Precio de compra + Comisiones)])-100%)","v":{"v":0.1562182998579833,"d":"15.62%"}}]
["Adventure Works","Woodgrove Bank","AWAW",250,{"v":21.56,"d":"21.56 €"},{"v":13,"d":"13.00 €"},{"$f":"(Tabla1[Cantidad]*Tabla1[Precio de compra por acción])+Tabla1[Comisiones]","v":{"v":5403,"d":"5,403.00 €"}},{"v":19.13,"d":"19.13 €"},{"$f":"Tabla1[Cantidad]*Tabla1[Actual cotización]","v":{"v":4782.5,"d":"4,782.50 €"}},{"$f":"Tabla1[Valor de mercado]-Tabla1[Costo total (Precio de compra + Comisiones)]","v":{"v":-620.5,"d":"-620.50 €"}},{"$f":"IF(ISERR(Tabla1[Valor de mercado]/Tabla1[Costo total (Precio de compra + Comisiones)]),\"\",(Tabla1[Valor de mercado]/Tabla1[Costo total (Precio de compra + Comisiones)])-100%)","v":{"v":-0.11484360540440497,"d":"-11.48%"}}]
["Wingtip Toys","Woodgrove Bank","WWTT",1200,{"v":7.01,"d":"7.01 €"},{"v":26,"d":"26.00 €"},{"$f":"(Tabla1[Cantidad]*Tabla1[Precio de compra por acción])+Tabla1[Comisiones]","v":{"v":8438,"d":"8,438.00 €"}},{"v":7.56,"d":"7.56 €"},{"$f":"Tabla1[Cantidad]*Tabla1[Actual cotización]","v":{"v":9072,"d":"9,072.00 €"}},{"$f":"Tabla1[Valor de mercado]-Tabla1[Costo total (Precio de compra + Comisiones)]","v":{"v":634,"d":"634.00 €"}},{"$f":"IF(ISERR(Tabla1[Valor de mercado]/Tabla1[Costo total (Precio de compra + Comisiones)]),\"\",(Tabla1[Valor de mercado]/Tabla1[Costo total (Precio de compra + Comisiones)])-100%)","v":{"v":0.07513628821995733,"d":"7.51%"}}]
["Total",{"$nulls":5},{"$f":"SUBTOTAL(109,Tabla1[Costo total (Precio de compra + Comisiones)])","v":{"v":18770,"d":"18,770.00 €"}},null,{"$f":"SUBTOTAL(109,Tabla1[Valor de mercado])","v":{"v":19553.5,"d":"19,553.50 €"}},{"$f":"SUBTOTAL(109,Tabla1[Ganancias/Pérdidas (€)])","v":{"v":783.5,"d":"783.50 €"}},{"$f":"Tabla1[[#Totals],[Valor de mercado]]/Tabla1[[#Totals],[Costo total (Precio de compra + Comisiones)]]-100%","v":{"v":0.0417421417155035,"d":"4.17%"}}]